fUST/lending_fUST_20240721
["ID","MTS","AMOUNT","RATE_DAILY","PERIOD"]
[332744122,1721500239868,-500.0,0.00013698,2]
[332744123,1721500239878,-500.0,0.00013698,2]
[332744124,1721500239887,-500.0,0.00013698,2]
[332744125,1721500239897,-500.0,0.00013698,2]
[332744126,1721500239906,-500.0,0.00013698,2]
[332744127,1721500239915,-500.0,0.00013698,2]
[332744128,1721500239925,-500.0,0.00013698,2]
[332744129,1721500239934,-500.0,0.00013698,2]
[332744130,1721500239944,-500.0,0.00013698,2]
[332744131,1721500239954,-500.0,0.00013698,2]
[332744132,1721500239964,-500.0,0.00013698,2]
[332744133,1721500239980,-500.7278879,0.00013698,2]
[332744134,1721500239989,-500.0,0.00013698,2]
[332744135,1721500239999,-571.33,0.00013698,2]
[332744136,1721500240008,-500.0,0.00013698,2]
[332744137,1721500240019,-500.0,0.00013698,2]
[332744138,1721500240029,-500.0,0.00013698,2]
[332744139,1721500240038,-622.68,0.00013698,2]
[332744140,1721500240050,-500.0,0.00013698,2]
[332744141,1721500240059,-502.26881878,0.00013698,2]
[332744142,1721500240069,-500.0,0.00013698,2]
[332744143,1721500240079,-500.0,0.00013698,2]
[332744144,1721500240089,-500.0,0.00013698,2]
[332744145,1721500240098,-501.88237339,0.00013698,2]
[332744146,1721500240108,-500.0,0.00013698,2]
[332744147,1721500240118,-500.0,0.00013698,2]
[332744148,1721500240128,-500.0,0.00013698,2]
[332744149,1721500240138,-500.0,0.00013698,2]
[332744150,1721500240147,-500.0,0.00013698,2]
[332744151,1721500240156,-500.0,0.00013698,2]
[332744152,1721500240165,-500.0,0.00013698,2]
[332744153,1721500240175,-500.0,0.00013698,2]
[332744154,1721500240185,-500.0,0.00013698,2]
[332744155,1721500240194,-502.09315046,0.00013698,2]
[332744156,1721500240203,-500.0,0.00013698,2]
[332744157,1721500240212,-500.0,0.00013698,2]
[332744158,1721500240222,-500.0,0.00013698,2]
[332744159,1721500240232,-1118.5,0.00013698,2]
[332744160,1721500240241,-500.0,0.00013698,2]
[332744161,1721500240251,-500.0,0.00013698,2]
[332744162,1721500240260,-500.0,0.00013698,2]
[332744163,1721500240270,-500.0,0.00013698,2]
[332744164,1721500240279,-500.0,0.00013698,2]
[332744166,1721500240289,-500.0,0.00013698,2]
[332744168,1721500240298,-500.0,0.00013698,2]
[332744170,1721500240307,-500.0,0.00013698,2]
[332744172,1721500240317,-636.52390275,0.00013698,2]
[332744174,1721500240328,-500.0,0.00013698,2]
[332744175,1721500240337,-500.0,0.00013698,2]
[332744176,1721500240347,-500.0,0.00013698,2]
[332744177,1721500240356,-594.43,0.00013698,2]
[332744178,1721500240366,-500.0,0.00013698,2]
[332744179,1721500240375,-500.0,0.00013698,2]
[332744180,1721500240385,-540.15,0.00013698,2]
[332744181,1721500240395,-500.0,0.00013698,2]
[332744182,1721500240405,-500.0,0.00013698,2]
[332744183,1721500240415,-500.0,0.00013698,2]
[332744184,1721500240426,-500.0,0.00013698,2]
[332744185,1721500240436,-500.0,0.00013698,2]
[332744186,1721500240446,-500.0,0.00013698,2]
[332744187,1721500240455,-500.0,0.00013698,2]
[332744188,1721500240464,-500.0,0.00013698,2]
[332744189,1721500240474,-500.0,0.00013698,2]
[332744190,1721500240484,-679.33,0.00013698,2]
[332744191,1721500240493,-500.0,0.00013698,2]
[332744192,1721500240502,-500.0,0.00013698,2]
[332744193,1721500240512,-500.0,0.00013698,2]
[332744194,1721500240522,-500.0,0.00013698,2]
[332744195,1721500240532,-500.0,0.00013698,2]
[332744196,1721500240543,-500.0,0.00013698,2]
[332744197,1721500240552,-500.0,0.00013698,2]
[332744198,1721500240563,-646.05085239,0.00013698,2]
[332744199,1721500240574,-500.0,0.00013698,2]
[332744200,1721500240584,-150.0,0.00013698,2]
[332744201,1721500240594,-883.27,0.00013698,2]
[332744202,1721500240606,-500.0,0.00013698,2]
[332744203,1721500240617,-500.0,0.00013698,2]
[332744204,1721500240627,-500.0,0.00013698,2]
[332744206,1721500240638,-355.50504189,0.00013698,2]
[332744207,1721500240649,-500.0,0.00013698,2]
[332744208,1721500240658,-601.4404759,0.00013698,2]
[332744209,1721500240668,-500.0,0.00013698,2]
[332744210,1721500240678,-213.58377767,0.00013698,2]
[332744211,1721500240689,-1066.04,0.00013698,2]
[332744212,1721500240700,-535.13087164,0.00013698,2]
[332744213,1721500240711,-500.0,0.00013698,2]
[332744214,1721500240722,-506.08089395,0.00013698,2]
[332744215,1721500240732,-651.66,0.00013698,2]
[332744216,1721500240745,-251.95448152,0.00013698,2]
[332744217,1721500240755,-505.46201646,0.00013698,2]
[332744218,1721500240767,-500.0,0.00013698,2]
[332744219,1721500240777,-500.0,0.00013698,2]
[332744220,1721500240787,-508.40747236,0.00013698,2]
[332744221,1721500240797,-500.0,0.00013698,2]
[332744222,1721500240807,-500.0,0.00013698,2]
[332744223,1721500240818,-500.0,0.00013698,2]
[332744224,1721500240829,-500.0,0.00013698,2]
[332744225,1721500240839,-300.0,0.00013698,2]
[332744226,1721500240850,-230.44075946,0.00013698,2]
[332744227,1721500240859,-2266.53,0.00013698,2]
[332744228,1721500240869,-500.0,0.00013698,2]
[332744229,1721500240880,-500.0,0.00013698,2]
[332744230,1721500240891,-650.0,0.00013698,2]
[332744231,1721500240902,-500.0,0.00013698,2]
[332744232,1721500240912,-500.0,0.00013698,2]
[332744233,1721500240924,-504.76781749,0.00013698,2]
[332744234,1721500240935,-500.0,0.00013698,2]
[332744235,1721500240946,-500.0,0.00013698,2]
[332744236,1721500240957,-261.30972445,0.00013698,2]
[332744237,1721500240968,-500.0,0.00013698,2]
[332744238,1721500240982,-500.0,0.00013698,2]
[332744239,1721500240992,-500.0,0.00013698,2]
[332744240,1721500241002,-193.47418578,0.00013698,2]
[332744241,1721500241011,-500.0,0.00013698,2]
[332744242,1721500241022,-314.99999999,0.00013698,2]
[332744243,1721500241031,-500.0,0.00013698,2]
[332744244,1721500241041,-500.0,0.00013698,2]
[332744245,1721500241053,-500.0,0.00013698,2]
[332744246,1721500241063,-500.0,0.00013698,2]
[332744247,1721500241073,-500.0,0.00013698,2]
[332744248,1721500241082,-500.0,0.00013698,2]
[332744249,1721500241093,-500.0,0.00013698,2]
[332744250,1721500241102,-500.0,0.00013698,2]
[332744251,1721500241111,-306.17776656,0.00013698,2]
[332744252,1721500241122,-500.0,0.00013698,2]
[332744253,1721500241131,-500.0,0.00013698,2]
[332744254,1721500241141,-500.0,0.00013698,2]
[332744255,1721500241150,-500.0,0.00013698,2]
[332744256,1721500241160,-500.0,0.00013698,2]
[332744257,1721500241169,-500.0,0.00013698,2]
[332744258,1721500241181,-500.0,0.00013698,2]
[332744259,1721500241191,-500.0,0.00013698,2]
[332744260,1721500241201,-500.0,0.00013698,2]
[332744261,1721500241210,-500.0,0.00013698,2]
[332744262,1721500241221,-500.0,0.00013698,2]
[332744263,1721500241233,-500.0,0.00013698,2]
[332744264,1721500241244,-500.0,0.00013698,2]
[332744265,1721500241255,-270.43895219,0.00013698,2]
[332744266,1721500241266,-500.0,0.00013698,2]
[332744267,1721500241276,-500.0,0.00013698,2]
[332744268,1721500241287,-500.0,0.00013698,2]
[332744269,1721500241298,-500.0,0.00013698,2]
[332744270,1721500241308,-500.0,0.00013698,2]
[332744271,1721500241319,-171.945,0.00013698,2]
[332744272,1721500241331,-500.0,0.00013698,2]
[332744273,1721500241342,-500.0,0.00013698,2]
[332744274,1721500241353,-500.0,0.00013698,2]
[332744275,1721500241365,-500.0,0.00013698,2]
[332744276,1721500241376,-500.0,0.00013698,2]
[332744277,1721500241387,-500.0,0.00013698,2]
[332744278,1721500241396,-500.0,0.00013698,2]
[332744279,1721500241407,-500.0,0.00013698,2]
[332744280,1721500241419,-500.0,0.00013698,2]
[332744281,1721500241431,-500.0,0.00013698,2]
[332744282,1721500241443,-500.0,0.00013698,2]
[332744283,1721500241454,-154.24584695,0.00013698,2]
[332744284,1721500241464,-500.0,0.00013698,2]
[332744285,1721500241476,-500.0,0.00013698,2]
[332744286,1721500241487,-409.08147992,0.00013698,2]
[332744287,1721500241499,-500.0,0.00013698,2]
[332744288,1721500241508,-500.0,0.00013698,2]
[332744289,1721500241518,-500.0,0.00013698,2]
[332744290,1721500241528,-529.69,0.00013698,2]
[332744291,1721500241539,-500.0,0.00013698,2]
[332744292,1721500241549,-500.0,0.00013698,2]
[332744293,1721500241558,-565.69560733,0.00013698,2]
[332744294,1721500241568,-511.09114034,0.00013698,2]
[332744295,1721500241578,-500.0,0.00013698,2]
[332744296,1721500241588,-500.0,0.00013698,2]
[332744297,1721500241597,-272.35996413,0.00013698,2]
[332744298,1721500241607,-500.0,0.00013698,2]
[332744299,1721500241616,-500.0,0.00013698,2]
[332744300,1721500241626,-500.0,0.00013698,2]
[332744301,1721500241637,-235.5,0.00013698,2]
[332744302,1721500241648,-482.34424015,0.00013698,2]
[332744303,1721500241658,-541.99503366,0.00013698,2]
[332744304,1721500241668,-500.0,0.00013698,2]
[332744305,1721500241678,-300.0,0.00013698,2]
[332744306,1721500241688,-500.0,0.00013698,2]
[332744307,1721500241698,-500.0,0.00013698,2]
[332744308,1721500241708,-500.0,0.00013698,2]
[332744309,1721500241720,-500.0,0.00013698,2]
[332744310,1721500241730,-500.0,0.00013698,2]
[332744311,1721500241740,-300.0,0.00013698,2]
[332744312,1721500241751,-500.0,0.00013698,2]
[332744313,1721500241761,-500.0,0.00013698,2]
[332744314,1721500241772,-554.99193017,0.00013698,2]
[332744315,1721500241784,-503.98,0.00013698,2]
[332744316,1721500241794,-500.0,0.00013698,2]
[332744317,1721500241806,-500.0,0.00013698,2]
[332744318,1721500241816,-500.0,0.00013698,2]
[332744319,1721500241827,-500.0,0.00013698,2]
[332744320,1721500241837,-250.0,0.00013698,2]
[332744321,1721500241849,-2399.27,0.00013698,2]
[332744322,1721500241858,-500.0,0.00013698,2]
[332744323,1721500241867,-500.0,0.00013698,2]
[332744324,1721500241876,-500.0,0.00013698,2]
[332744325,1721500241885,-500.0,0.00013698,2]
[332744326,1721500241895,-500.55636249,0.00013698,2]
[332744327,1721500241905,-500.0,0.00013698,2]
[332744328,1721500241915,-500.0,0.00013698,2]
[332744329,1721500241924,-500.0,0.00013698,2]
[332744330,1721500241933,-642.9,0.00013698,2]
[332744331,1721500241942,-500.0,0.00013698,2]
[332744332,1721500241952,-500.0,0.00013698,2]
[332744333,1721500241961,-513.30695711,0.00013698,2]
[332744334,1721500241972,-502.42225169,0.00013698,2]
[332744335,1721500241983,-500.0,0.00013698,2]
[332744336,1721500241992,-500.0,0.00013698,2]
[332744337,1721500242001,-538.03,0.00013698,2]
[332744338,1721500242011,-500.0,0.00013698,2]
[332744339,1721500242021,-500.0,0.00013698,2]
[332744340,1721500242030,-500.0,0.00013698,2]
[332744341,1721500242040,-500.0,0.00013698,2]
[332744342,1721500242051,-500.0,0.00013698,2]
[332744343,1721500242061,-500.0,0.00013698,2]
[332744344,1721500242070,-500.0,0.00013698,2]
[332744345,1721500242079,-690.28,0.00013698,2]
[332744346,1721500242089,-500.0,0.00013698,2]
[332744347,1721500242098,-1386.39,0.00013698,2]
[332744348,1721500242108,-505.11920375,0.00013698,2]
[332744349,1721500242118,-500.0,0.00013698,2]
[332744350,1721500242128,-1782.45,0.00013698,2]
[332744351,1721500242137,-819.96,0.00013698,2]
[332744352,1721500242148,-521.24,0.00013698,2]
[332744353,1721500242159,-850.61,0.00013698,2]
[332744354,1721500242168,-500.0,0.00013698,2]
[332744355,1721500242179,-500.0,0.00013698,2]
[332744356,1721500242191,-500.0,0.00013698,2]
[332744357,1721500242201,-500.0,0.00013698,2]
[332744358,1721500242211,-500.0,0.00013698,2]
[332744359,1721500242221,-258.57234386,0.00013698,2]
[332744360,1721500242232,-644.82,0.00013698,2]
[332744361,1721500242242,-563.29,0.00013698,2]
[332744362,1721500242253,-510.80465162,0.00013698,2]
[332744363,1721500242263,-723.75,0.00013698,2]
[332744364,1721500242274,-551.98589564,0.00013698,2]
[332744365,1721500242283,-500.0,0.00013698,2]
[332744366,1721500242293,-512.07655604,0.00013698,2]
[332744367,1721500242302,-3096.21,0.00013698,2]
[332744368,1721500242311,-500.0,0.00013698,2]
[332744369,1721500242321,-500.0,0.00013698,2]
[332744370,1721500242333,-500.0,0.00013698,2]
[332744371,1721500242343,-609.52367989,0.00013698,2]
[332744372,1721500242355,-633.4,0.00013698,2]
[332744373,1721500242364,-595.13,0.00013698,2]
[332744374,1721500242373,-500.0,0.00013698,2]
[332744375,1721500242382,-500.0,0.00013698,2]
[332744376,1721500242392,-500.80679344,0.00013698,2]
[332744377,1721500242402,-539.6,0.00013698,2]
[332744378,1721500242411,-500.0,0.00013698,2]
[332744379,1721500242421,-621.08,0.00013698,2]
[332744380,1721500242431,-500.0,0.00013698,2]
[332744381,1721500242440,-500.0,0.00013698,2]
[332744382,1721500242449,-500.0,0.00013698,2]
[332744383,1721500242459,-1171.4,0.00013698,2]
[332744384,1721500242469,-2392.2,0.00013698,2]
[332744385,1721500242479,-2257.63,0.00013698,2]
[332744386,1721500242489,-575.81,0.00013698,2]
[332744387,1721500242499,-500.0,0.00013698,2]
[332744388,1721500242508,-500.0,0.00013698,2]
[332744389,1721500242518,-500.0,0.00013698,2]
[332744390,1721500242527,-3478.77,0.00013698,2]
[332744391,1721500242537,-500.0,0.00013698,2]
[332744392,1721500242547,-500.0,0.00013698,2]
[332744393,1721500242556,-500.0,0.00013698,2]
[332744394,1721500242566,-500.0,0.00013698,2]
[332744395,1721500242577,-500.0,0.00013698,2]
[332744396,1721500242586,-500.0,0.00013698,2]
[332744397,1721500242596,-500.0,0.00013698,2]
[332744398,1721500242606,-500.0,0.00013698,2]
[332744399,1721500242616,-500.0,0.00013698,2]
[332744400,1721500242625,-199.81853992,0.00013698,2]
[332744401,1721500242635,-500.0,0.00013698,2]
[332744402,1721500242646,-500.0,0.00013698,2]
[332744403,1721500242656,-2385.11,0.00013698,2]
[332744404,1721500242665,-564.55397441,0.00013698,2]
[332744405,1721500242674,-436.50278099,0.00013698,2]
[332744406,1721500242684,-500.0,0.00013698,2]
[332744407,1721500242693,-929.7,0.00013698,2]
[332744408,1721500242702,-500.0,0.00013698,2]
[332744409,1721500242712,-502.60980733,0.00013698,2]
[332744410,1721500242721,-500.0,0.00013698,2]
[332744411,1721500242730,-342.45378004,0.00013698,2]
[332744412,1721500242740,-500.0,0.00013698,2]
[332744413,1721500242749,-1909.86,0.00013698,2]
[332744414,1721500242758,-1051.01,0.00013698,2]
[332744415,1721500242768,-500.0,0.00013698,2]
[332744416,1721500242777,-500.0,0.00013698,2]
[332744417,1721500242786,-500.0,0.00013698,2]
[332744418,1721500242796,-525.96507878,0.00013698,2]
[332744419,1721500242805,-1075.39,0.00013698,2]
[332744420,1721500242815,-500.0,0.00013698,2]
[332744421,1721500242824,-500.0,0.00013698,2]
[332744422,1721500242834,-1189.46,0.00013698,2]
[332744423,1721500242843,-500.0,0.00013698,2]
[332744424,1721500242853,-500.0,0.00013698,2]
[332744425,1721500242863,-500.0,0.00013698,2]
[332744426,1721500242872,-688.18,0.00013698,2]
[332744427,1721500242882,-2000.0,0.00013698,2]
[332744428,1721500242891,-500.0,0.00013698,2]
[332744429,1721500242900,-504.38908166,0.00013698,2]
[332744430,1721500242909,-500.0,0.00013698,2]
[332744431,1721500242919,-500.0,0.00013698,2]
[332744432,1721500242928,-500.0,0.00013698,2]
[332744433,1721500242937,-500.0,0.00013698,2]
[332744434,1721500242946,-796.37,0.00013698,2]
[332744435,1721500242956,-500.0,0.00013698,2]
[332744436,1721500242965,-500.0,0.00013698,2]
[332744437,1721500242978,-500.0,0.00013698,2]
[332744438,1721500242988,-500.0,0.00013698,2]
[332744439,1721500242999,-1176.28,0.00013698,2]
[332744440,1721500243010,-500.0,0.00013698,2]
[332744441,1721500243022,-500.0,0.00013698,2]
[332744442,1721500243031,-693.44,0.00013698,2]
[332744443,1721500243041,-500.0,0.00013698,2]
[332744444,1721500243053,-500.0,0.00013698,2]
[332744445,1721500243063,-500.0,0.00013698,2]
[332744446,1721500243075,-500.0,0.00013698,2]
[332744447,1721500243085,-500.0,0.00013698,2]
[332744448,1721500243094,-500.0,0.00013698,2]
[332744449,1721500243105,-514.32357617,0.00013698,2]
[332744450,1721500243115,-505.54319834,0.00013698,2]
[332744451,1721500243126,-500.0,0.00013698,2]
[332744452,1721500243136,-500.0,0.00013698,2]
[332744453,1721500243147,-500.0,0.00013698,2]
[332744454,1721500243157,-500.0,0.00013698,2]
[332744455,1721500243167,-500.0,0.00013698,2]
[332744462,1721500243366,-500.0,0.00013698,2]
[332744465,1721500243377,-500.0,0.00013698,2]
[332744467,1721500243388,-617.69,0.00013698,2]
[332744468,1721500243397,-526.07354938,0.00013698,2]
[332744469,1721500243406,-620.43,0.00013698,2]
[332744470,1721500243416,-912.35,0.00013698,2]
[332744471,1721500243426,-500.0,0.00013698,2]
[332744472,1721500243436,-500.0,0.00013698,2]
[332744473,1721500243445,-1890.28,0.00013698,2]
[332744474,1721500243455,-501.71905467,0.00013698,2]
[332744475,1721500243464,-500.0,0.00013698,2]
[332744476,1721500243474,-500.0,0.00013698,2]
[332744477,1721500243484,-500.0,0.00013698,2]
[332744478,1721500243494,-500.0,0.00013698,2]
[332744479,1721500243504,-582.28461375,0.00013698,2]
[332744480,1721500243514,-500.0,0.00013698,2]
[332744481,1721500243523,-506.27059481,0.00013698,2]
[332744482,1721500243533,-515.12988625,0.00013698,2]
[332744483,1721500243542,-502.8377914,0.00013698,2]
[332744484,1721500243553,-558.31,0.00013698,2]
[332744485,1721500243562,-4286.48,0.00013698,2]
[332744486,1721500243572,-612.0,0.00013698,2]
[332744487,1721500243583,-500.0,0.00013698,2]
[332744488,1721500243594,-500.0,0.00013698,2]
[332744489,1721500243603,-500.0,0.00013698,2]
[332744490,1721500243613,-813.45,0.00013698,2]
[332744491,1721500243623,-1468.94,0.00013698,2]
[332744492,1721500243634,-500.0,0.00013698,2]
[332744493,1721500243644,-500.0,0.00013698,2]
[332744494,1721500243655,-500.0,0.00013698,2]
[332744495,1721500243667,-609.35,0.00013698,2]
[332744496,1721500243677,-500.0,0.00013698,2]
[332744497,1721500243689,-500.0,0.00013698,2]
[332744498,1721500243700,-500.0,0.00013698,2]
[332744499,1721500243711,-500.0,0.00013698,2]
[332744500,1721500243721,-500.0,0.00013698,2]
[332744501,1721500243731,-821.95,0.00013698,2]
[332744502,1721500243741,-500.0,0.00013698,2]
[332744503,1721500243750,-500.0,0.00013698,2]
[332744504,1721500243760,-500.0,0.00013698,2]
[332744505,1721500243771,-503.04863189,0.00013698,2]
[332744506,1721500243783,-500.0,0.00013698,2]
[332744507,1721500243792,-500.0,0.00013698,2]
[332744508,1721500243802,-500.0,0.00013698,2]
[332744509,1721500243812,-505.35435945,0.00013698,2]
[332744510,1721500243823,-500.0,0.00013698,2]
[332744511,1721500243834,-500.0,0.00013698,2]
[332744512,1721500243844,-500.0,0.00013698,2]
[332744513,1721500243854,-500.0,0.00013698,2]
[332744514,1721500243864,-1025.73,0.00013698,2]
[332744515,1721500243875,-500.0,0.00013698,2]
[332744516,1721500243886,-500.0,0.00013698,2]
[332744517,1721500243896,-500.0,0.00013698,2]
[332744518,1721500243906,-500.0,0.00013698,2]
[332744519,1721500243917,-500.0,0.00013698,2]
[332744520,1721500243928,-500.0,0.00013698,2]
[332744521,1721500243937,-500.0,0.00013698,2]
[332744522,1721500243947,-500.0,0.00013698,2]
[332744523,1721500243956,-500.0,0.00013698,2]
[332744524,1721500243967,-500.0,0.00013698,2]
[332744525,1721500243982,-558.13,0.00013698,2]
[332744526,1721500243991,-1085.97,0.00013698,2]
[332744527,1721500244003,-500.0,0.00013698,2]
[332744528,1721500244015,-500.0,0.00013698,2]
[332744529,1721500244024,-500.0,0.00013698,2]
[332744530,1721500244033,-500.0,0.00013698,2]
[332744531,1721500244045,-1282.95,0.00013698,2]
[332744532,1721500244056,-500.0,0.00013698,2]
[332744533,1721500244068,-505.93712617,0.00013698,2]
[332744534,1721500244079,-500.0,0.00013698,2]
[332744535,1721500244090,-626.5,0.00013698,2]
[332744536,1721500244100,-2781.42,0.00013698,2]
[332744537,1721500244112,-500.0,0.00013698,2]
[332744538,1721500244123,-500.0,0.00013698,2]
[332744539,1721500244133,-500.0,0.00013698,2]
[332744540,1721500244143,-500.0,0.00013698,2]
[332744541,1721500244154,-500.0,0.00013698,2]
[332744542,1721500244164,-500.0,0.00013698,2]
[332744543,1721500244175,-500.0,0.00013698,2]
[332744544,1721500244186,-500.0,0.00013698,2]
[332744545,1721500244197,-500.0,0.00013698,2]
[332744546,1721500244209,-502.76716104,0.00013698,2]
[332744547,1721500244219,-2168.23,0.00013698,2]
[332744548,1721500244230,-500.0,0.00013698,2]
[332744549,1721500244241,-500.0,0.00013698,2]
[332744550,1721500244251,-500.0,0.00013698,2]
[332744551,1721500244261,-500.0,0.00013698,2]
[332744552,1721500244272,-500.0,0.00013698,2]
[332744553,1721500244282,-861.65,0.00013698,2]
[332744554,1721500244291,-921.43,0.00013698,2]
[332744555,1721500244300,-500.0,0.00013698,2]
[332744556,1721500244309,-2063.58,0.00013698,2]
[332744557,1721500244319,-500.0,0.00013698,2]
[332744558,1721500244329,-500.0,0.00013698,2]
[332744559,1721500244339,-500.0,0.00013698,2]
[332744560,1721500244349,-1535.4,0.00013698,2]
[332744561,1721500244359,-500.0,0.00013698,2]
[332744562,1721500244369,-500.0,0.00013698,2]
[332744563,1721500244380,-1367.5,0.00013698,2]
[332744564,1721500244392,-501.28590095,0.00013698,2]
[332744565,1721500244402,-500.0,0.00013698,2]
[332744566,1721500244413,-1766.9,0.00013698,2]
[332744567,1721500244423,-500.0,0.00013698,2]
[332744568,1721500244433,-500.0,0.00013698,2]
[332744569,1721500244444,-500.0,0.00013698,2]
[332744570,1721500244455,-500.0,0.00013698,2]
[332744571,1721500244466,-500.0,0.00013698,2]
[332744572,1721500244478,-678.49,0.00013698,2]
[332744573,1721500244488,-1791.92,0.00013698,2]
[332744574,1721500244500,-502.03808671,0.00013698,2]
[332744575,1721500244509,-539.8,0.00013698,2]
[332744576,1721500244518,-500.0,0.00013698,2]
[332744577,1721500244527,-510.37104917,0.00013698,2]
[332744578,1721500244537,-500.0,0.00013698,2]
[332744579,1721500244546,-500.0,0.00013698,2]
[332744580,1721500244556,-556.66494551,0.00013698,2]
[332744581,1721500244565,-500.0,0.00013698,2]
[332744582,1721500244575,-500.0,0.00013698,2]
[332744583,1721500244584,-500.0,0.00013698,2]
[332744584,1721500244593,-500.0,0.00013698,2]
[332744585,1721500244603,-2578.48,0.00013698,2]
[332744586,1721500244613,-500.0,0.00013698,2]
[332744587,1721500244622,-500.0,0.00013698,2]
[332744588,1721500244631,-500.0,0.00013698,2]
[332744589,1721500244641,-500.0,0.00013698,2]
[332744590,1721500244650,-897.56,0.00013698,2]
[332744591,1721500244660,-500.4941119,0.00013698,2]
[332744592,1721500244669,-769.49,0.00013698,2]
[332744593,1721500244679,-500.0,0.00013698,2]
[332744594,1721500244688,-724.24,0.00013698,2]
[332744595,1721500244698,-500.0,0.00013698,2]
[332744596,1721500244707,-501.43999562,0.00013698,2]
[332744597,1721500244716,-500.0,0.00013698,2]
[332744598,1721500244726,-1393.65,0.00013698,2]
[332744599,1721500244736,-502.92442484,0.00013698,2]
[332744600,1721500244745,-500.0,0.00013698,2]
[332744601,1721500244755,-520.63,0.00013698,2]
[332744602,1721500244764,-503.14598103,0.00013698,2]
[332744603,1721500244773,-500.0,0.00013698,2]
[332744604,1721500244783,-500.0,0.00013698,2]
[332744605,1721500244792,-513.01,0.00013698,2]
[332744606,1721500244801,-500.0,0.00013698,2]
[332744607,1721500244811,-581.03636157,0.00013698,2]
[332744608,1721500244820,-500.0,0.00013698,2]
[332744609,1721500244830,-500.0,0.00013698,2]
[332744610,1721500244840,-500.0,0.00013698,2]
[332744611,1721500244849,-524.86017018,0.00013698,2]
[332744612,1721500244859,-500.0,0.00013698,2]
[332744613,1721500244869,-500.0,0.00013698,2]
[332744614,1721500244879,-721.38,0.00013698,2]
[332744615,1721500244888,-1545.17,0.00013698,2]
[332744616,1721500244897,-3002.39,0.00013698,2]
[332744617,1721500244907,-682.11,0.00013698,2]
[332744618,1721500244917,-500.0,0.00013698,2]
[332744619,1721500244928,-500.0,0.00013698,2]
[332744620,1721500244939,-1804.4,0.00013698,2]
[332744621,1721500244950,-500.0,0.00013698,2]
[332744622,1721500244962,-500.0,0.00013698,2]
[332744623,1721500244974,-398.38256931,0.00013698,2]
[332744624,1721500244987,-921.09,0.00013698,2]
[332744625,1721500244998,-2054.12,0.00013698,2]
[332744626,1721500245007,-3848.9,0.00013698,2]
[332744627,1721500245019,-2125.36,0.00013698,2]
[332744628,1721500245029,-503.70346198,0.00013698,2]
[332744629,1721500245038,-1172.73,0.00013698,2]
[332744630,1721500245048,-1378.3,0.00013698,2]
[332744631,1721500245059,-500.0,0.00013698,2]
[332744632,1721500245069,-500.0,0.00013698,2]
[332744633,1721500245080,-10858.16,0.00013698,2]
[332744634,1721500245092,-500.0,0.00013698,2]
[332744635,1721500245101,-500.0,0.00013698,2]
[332744636,1721500245113,-500.0,0.00013698,2]